bitfinex/quotes_SOLUSD_20260217
["timestamp","ask_amount","ask_price","bid_price","bid_amount"]
[1771344211555,10.74667653,84.61,84.573,11.82410461]
[1771344211864,0.47310181,84.609,84.568,11.8248037]
[1771344212156,7.20218298,84.61,84.571,0.47030287]
[1771344212560,7.20218298,84.6,84.571,0.47030287]
[1771344212862,7.20218298,84.59,84.559,11.82606227]
[1771344213158,7.20218298,84.59,84.559,0.47030287]
[1771344213362,7.20218298,84.6,84.561,0.47030287]
[1771344213745,7.20218298,84.59,84.558,12.296505]
[1771344213940,7.20218298,84.6,84.559,0.47030287]
[1771344214345,7.20218298,84.59,84.559,0.47030287]
[1771344214540,7.20218298,84.59,84.558,11.82620213]
[1771344214541,7.20218298,84.59,84.56,12.29622529]
[1771344214742,7.20218298,84.61,84.571,0.47030287]
[1771344214955,7.20218298,84.62,84.581,0.47030287]
[1771344215242,7.20218298,84.62,84.583,0.47030287]
[1771344215556,7.20218298,84.61,84.583,0.47030287]
[1771344215942,7.20218298,84.61,84.577,0.47030287]
[1771344216244,7.20218298,84.62,84.581,0.47030287]
[1771344216439,7.20218298,84.62,84.58,7.20218298]
[1771344216440,7.20218298,84.64,84.602,0.47030287]
[1771344216673,7.20218298,84.65,84.611,0.47030287]
[1771344217171,11.81223274,84.658,84.621,0.47030287]
[1771344217471,7.20218298,84.66,84.621,0.47030287]
[1771344217668,7.20218298,84.66,84.631,0.47030287]
[1771344218080,7.20218298,84.65,84.616,0.47030287]
[1771344218566,7.20218298,84.64,84.613,11.81850208]
[1771344218766,11.81348864,84.649,84.608,11.81907489]
[1771344218767,7.20218298,84.63,84.608,11.81907489]
[1771344219073,13.04,84.664,84.611,0.47030287]
[1771344219074,7.20218298,84.65,84.611,0.47030287]
[1771344219277,0.47055706,84.685,84.621,0.47030287]
[1771344219476,7.20218298,84.66,84.621,0.47030287]
[1771344219791,7.20218298,84.65,84.618,0.47030287]
[1771344219965,7.20218298,84.65,84.617,16.62]
[1771344219966,7.20218298,84.66,84.621,0.47030287]
[1771344220781,13.04,84.841,84.631,0.47030287]
[1771344220782,7.20218298,84.67,84.631,0.47030287]
[1771344220997,7.20218298,84.67,84.623,11.81711827]
[1771344220998,7.20218298,84.68,84.641,0.47030287]
[1771344221162,0.47055706,84.698,84.64,7.20218298]
[1771344221163,0.47055706,84.698,84.643,0.47030287]
[1771344221486,7.20218298,84.69,84.651,0.47030287]
[1771344221709,7.20218298,84.68,84.651,0.47030287]
[1771344221862,7.20218298,84.67,84.639,0.47030287]
[1771344222066,0.47055706,84.686,84.625,16.6]
[1771344222067,7.20218298,84.66,84.625,16.6]
[1771344222265,7.20218298,84.66,84.626,0.47030287]
[1771344222661,7.20218298,84.66,84.628,0.47030287]
[1771344222978,0.47055706,84.675,84.627,41.35795903]
[1771344222979,7.20218298,84.67,84.631,0.47030287]
[1771344223376,7.20218298,84.66,84.631,0.47030287]
[1771344224059,7.20218298,84.67,84.631,0.47030287]
[1771344224265,41.8015998,84.69,84.631,0.47030287]
[1771344224481,7.20218298,84.67,84.631,0.47030287]
[1771344224680,7.20218298,84.68,84.641,0.48984428]
[1771344225080,11.80930336,84.679,84.641,0.48984428]
[1771344225265,7.20218298,84.67,84.641,0.48984428]
[1771344225577,7.20218298,84.67,84.642,0.48984428]
[1771344225779,7.20218298,84.66,84.632,11.81586161]
[1771344225986,7.20218298,84.66,84.633,16.62]
[1771344226363,7.20218298,84.66,84.629,0.48984428]
[1771344226364,7.20218298,84.66,84.629,11.81615006]
[1771344226663,51.83868,84.708,84.599,47.28146527]
[1771344226664,4.61729252,84.709,84.641,0.48984428]
[1771344226864,7.20218298,84.68,84.643,0.48984428]
[1771344227060,7.20218298,84.67,84.633,16.62]
[1771344227274,7.20218298,84.67,84.633,0.48984428]
[1771344228680,7.20218298,84.68,84.636,0.48984428]
[1771344228883,7.20218298,84.67,84.636,0.48984428]
[1771344229181,7.20218298,84.66,84.631,11.81599939]
[1771344229488,7.20218298,84.64,84.614,0.48984428]
[1771344229687,7.20218298,84.63,84.604,0.48984428]
[1771344229899,7.20218298,84.64,84.604,0.48984428]
[1771344230190,7.20218298,84.65,84.611,0.48984428]
[1771344230568,7.20218298,84.63,84.589,0.48984428]
[1771344230869,7.20218298,84.61,84.577,0.48984428]
[1771344231475,7.20218298,84.62,84.58,7.20218298]
[1771344231694,7.20218298,84.63,84.581,0.48984428]
[1771344231889,7.20218298,84.63,84.55,12.56304486]
[1771344231890,7.20218298,84.64,84.601,0.48984428]
[1771344232072,7.20218298,84.64,84.603,0.45515524]
[1771344232585,7.20218298,84.63,84.603,0.45515524]
[1771344233266,7.20218298,84.63,84.604,11.81977211]
[1771344233463,7.20218298,84.63,84.604,12.27492735]
[1771344233687,11.81628047,84.629,84.604,0.45515524]
[1771344234372,7.20218298,84.63,84.604,12.27492735]
[1771344234567,11.81509597,84.638,84.604,11.81977211]
[1771344234769,7.20218298,84.63,84.603,0.45515524]
[1771344234971,0.45706633,84.656,84.603,0.45515524]
[1771344235172,7.20218298,84.64,84.611,0.45515524]
[1771344235377,7.20218298,84.63,84.607,16.62]
[1771344235692,7.20218298,84.63,84.6,0.45515524]
[1771344236481,7.20218298,84.64,84.601,0.45515524]
[1771344236682,7.20218298,84.65,84.611,0.45515524]
[1771344236887,11.81348864,84.649,84.611,0.45515524]
[1771344237273,11.81348864,84.649,84.613,0.45515524]
[1771344237785,7.20218298,84.64,84.613,0.45515524]
[1771344238686,19.01564037,84.65,84.613,0.45515524]
[1771344239393,7.20218298,84.64,84.615,0.45515524]
[1771344240988,11.81278573,84.655,84.615,0.45515524]
[1771344241190,7.20218298,84.66,84.621,0.45515524]
[1771344241394,7.20218298,84.64,84.621,0.45515524]
[1771344241571,7.20218298,84.65,84.621,12.27253962]
[1771344242392,7.20218298,84.65,84.622,0.45515524]
[1771344242891,7.20218298,84.64,84.601,11.82019125]
[1771344243082,41.34232627,84.659,84.6,0.45515524]
[1771344243083,7.20218298,84.63,84.6,0.45515524]
[1771344243289,7.20218298,84.64,84.602,0.45515524]
[1771344243489,19.01706657,84.64,84.604,0.45515524]
[1771344243691,7.20218298,84.63,84.604,0.45515524]
[1771344244293,11.81488359,84.64,84.52,35.82074538]
[1771344244294,7.20218298,84.62,84.594,0.45515524]
[1771344244485,7.20218298,84.62,84.546,4.61729252]
[1771344244486,7.20218298,84.6,84.579,11.82322352]
[1771344244803,13.04,84.632,84.581,0.45515524]
[1771344245009,7.20218298,84.64,84.601,0.45515524]
[1771344245186,7.20218298,84.64,84.603,0.45515524]
[1771344245381,0.45706633,84.65,84.603,0.45515524]
[1771344245382,7.20218298,84.63,84.603,0.45515524]
[1771344245699,19.01705207,84.64,84.605,0.45515524]
[1771344245897,0.45706633,84.65,84.605,0.45515524]
[1771344245898,7.19363798,84.65,84.605,0.45515524]
[1771344246205,0.45706633,84.661,84.611,0.45515524]
[1771344246206,7.19363798,84.64,84.611,0.45515524]
[1771344246594,0.45706633,84.658,84.611,0.45515524]
[1771344246788,7.19363798,84.64,84.611,0.45515524]
[1771344246985,7.19363798,84.64,84.613,0.45515524]
[1771344247404,11.81488439,84.639,84.613,0.45515524]
[1771344247583,7.19363798,84.64,84.615,0.45515524]
[1771344248099,0.45706633,84.619,84.577,0.45515524]
[1771344248398,7.19363798,84.61,84.579,0.45515524]
[1771344248700,41.3516518,84.64,84.568,0.45515524]
[1771344248701,7.19363798,84.59,84.568,0.45515524]
[1771344248902,7.19363798,84.6,84.568,0.45515524]
[1771344249214,7.19363798,84.59,84.554,0.45515524]
[1771344249388,7.19363798,84.59,84.554,17.07515524]
[1771344249584,11.82186809,84.589,84.554,0.45515524]
[1771344249788,11.82186809,84.589,84.54,7.19363798]
[1771344249789,11.82186809,84.589,84.545,0.45515524]
[1771344249990,7.19363798,84.58,84.545,0.45515524]
[1771344250301,7.19363798,84.57,84.545,0.45515524]
[1771344250486,7.19363798,84.57,84.533,0.45515524]
[1771344250685,7.19363798,84.58,84.533,0.45515524]
[1771344250881,7.19363798,84.57,84.533,0.45515524]
[1771344251294,7.19363798,84.56,84.533,0.45515524]
[1771344251497,7.19363798,84.56,84.531,11.82997953]
[1771344251689,7.19363798,84.57,84.532,0.45515524]
[1771344253401,11.8236852,84.576,84.534,0.45515524]
[1771344253611,7.19363798,84.57,84.536,0.45515524]
[1771344255295,0.49142241,84.569,84.534,11.82949526]
[1771344255484,7.19363798,84.56,84.534,11.82949526]
[1771344255688,7.19363798,84.57,84.535,0.49535739]
[1771344255895,19.01824454,84.57,84.535,0.49535739]
[1771344256104,7.19363798,84.56,84.535,0.49535739]
[1771344256300,7.19363798,84.57,84.535,0.49535739]
[1771344256498,7.19363798,84.57,84.534,11.82949526]
[1771344256499,12.31608629,84.569,84.534,28.50949526]
[1771344256716,7.19363798,84.56,84.534,11.82949526]
[1771344256906,7.19363798,84.56,84.53,0.2]
[1771344257311,7.19363798,84.54,84.52,16.62090898]
[1771344257607,0.49142241,84.549,84.52,16.62090898]
[1771344257608,7.19363798,84.53,84.52,16.62090898]
[1771344257913,7.19363798,84.54,84.52,16.62090898]
[1771344258403,11.82746099,84.549,84.521,11.83137918]
[1771344258607,11.82746099,84.549,84.52,16.62090898]
[1771344258608,7.19363798,84.54,84.52,16.62090898]
[1771344258814,11.82746099,84.549,84.5,0.2]
[1771344258815,0.49142241,84.529,84.5,0.2]
[1771344259030,7.19363798,84.52,84.5,0.2]
[1771344259605,7.19363798,84.53,84.501,11.83417947]
[1771344259805,7.19363798,84.53,84.502,0.49535739]
[1771344260201,7.19363798,84.6,84.502,0.49535739]
[1771344260202,7.19363798,84.54,84.502,0.49535739]
[1771344260401,7.19363798,84.6,84.511,0.49535739]
[1771344260402,7.19363798,84.55,84.511,0.49535739]
[1771344260606,7.19363798,84.55,84.513,0.49535739]
[1771344261103,13.06,84.579,84.521,0.49535739]
[1771344261104,7.19363798,84.56,84.521,0.49535739]
[1771344261289,11.82466388,84.569,84.521,0.49535739]
[1771344261493,7.19363798,84.56,84.522,11.8312392]
[1771344261688,7.19363798,84.56,84.524,0.49535739]
[1771344261890,11.82466388,84.569,84.524,0.49535739]
[1771344262404,11.82466388,84.569,84.526,0.49535739]
[1771344262607,11.82466388,84.569,84.528,0.49535739]
[1771344262992,7.19363798,84.56,84.528,0.49535739]
[1771344263195,7.19363798,84.57,84.531,0.49535739]
[1771344263509,0.49142241,84.577,84.533,0.49535739]
[1771344263690,7.19363798,84.58,84.535,0.49535739]
[1771344263889,11.82214761,84.587,84.535,0.49535739]
[1771344263890,7.19363798,84.57,84.535,0.49535739]
[1771344264221,7.19363798,84.55,84.528,16.68]
[1771344264510,0.49142241,84.567,84.528,16.68]
[1771344264511,7.19363798,84.56,84.528,16.68]
[1771344264714,7.19363798,84.57,84.531,0.49535739]
[1771344265121,7.19363798,84.57,84.533,0.49535739]
[1771344265407,7.19363798,84.57,84.532,16.68]
[1771344265408,13.06,84.586,84.541,0.49535739]
[1771344265604,7.19363798,84.58,84.541,0.49535739]
[1771344265801,7.19363798,84.58,84.54,7.19363798]
[1771344265802,7.19363798,84.58,84.543,0.49535739]
[1771344266612,11.82232881,84.586,84.544,16.68]
[1771344266818,7.19363798,84.6,84.551,0.49535739]
[1771344267005,7.19363798,84.6,84.561,0.49535739]
[1771344267208,7.19363798,84.61,84.561,0.49535739]
[1771344267603,7.19363798,84.62,84.571,0.49535739]
[1771344267808,7.19363798,84.62,84.581,0.49535739]
[1771344267994,11.81628047,84.629,84.583,0.49535739]
[1771344268902,7.19363798,84.64,84.601,0.49535739]
[1771344269103,11.81488439,84.639,84.601,0.49535739]
[1771344269317,7.19363798,84.64,84.603,0.49535739]
[1771344269920,11.81488439,84.639,84.605,0.49535739]
[1771344270427,7.19363798,84.65,84.611,0.49535739]
[1771344270610,0.49142241,84.661,84.611,0.49535739]
[1771344270611,11.81223274,84.658,84.611,0.49535739]
[1771344270816,11.81209322,84.659,84.611,0.49535739]
[1771344271018,7.19363798,84.66,84.621,0.49535739]
[1771344271212,11.81089253,84.668,84.631,0.49535739]
[1771344271430,11.81089253,84.668,84.604,41.86455978]
[1771344271431,0.49142241,84.649,84.604,41.86455978]
[1771344271605,7.19363798,84.65,84.54,7.19363798]
[1771344271606,0.49142241,84.609,84.54,7.19363798]
[1771344271805,7.19363798,84.58,84.546,0.49535739]
[1771344272010,7.19363798,84.58,84.548,0.49535739]
[1771344272519,7.19363798,84.57,84.549,16.68]
[1771344273327,41.37507092,84.592,84.527,12.32589674]
[1771344273328,7.19363798,84.56,84.527,12.32589674]
[1771344273529,7.19363798,84.59,84.541,0.49535739]
[1771344273740,0.49142241,84.611,84.551,0.49535739]
[1771344274029,7.19363798,84.59,84.553,0.49535739]
[1771344274544,7.19363798,84.6,84.561,0.49535739]
[1771344274711,7.19363798,84.6,84.522,5.36086188]
[1771344274712,7.19363798,84.59,84.551,11.82715127]
[1771344274907,7.19363798,84.59,84.553,0.49535739]
[1771344275438,7.19363798,84.6,84.561,0.49535739]
[1771344275611,7.19363798,84.6,84.551,41.39510433]
[1771344275612,7.19363798,84.59,84.551,11.82715127]
[1771344275810,7.19363798,84.59,84.556,16.7]
[1771344276331,13.06,84.619,84.561,0.49535739]
[1771344276332,19.01405712,84.6,84.561,0.49535739]
[1771344276910,7.19363798,84.59,84.561,0.49535739]
[1771344277124,7.19363798,84.59,84.549,0.49535739]
[1771344277332,7.19363798,84.59,84.55,16.7]
[1771344277519,7.19363798,84.58,84.551,16.7]
[1771344278321,11.82326582,84.579,84.551,16.7]
[1771344278937,7.19363798,84.56,84.529,11.83025943]
[1771344279135,11.82326582,84.579,84.531,0.49535739]
[1771344279434,7.19363798,84.57,84.533,0.49535739]
[1771344279738,11.82326582,84.579,84.533,0.49535739]
[1771344280320,0.49142241,84.596,84.541,0.49535739]
[1771344280520,7.19363798,84.58,84.541,0.49535739]
[1771344281527,7.19363798,84.58,84.543,0.49535739]
[1771344281927,7.19363798,84.57,84.544,16.72]
[1771344282225,7.19363798,84.57,84.534,12.32491709]
[1771344282535,7.19363798,84.6,84.516,11.8320163]
[1771344282536,7.19363798,84.55,84.516,11.8320163]
[1771344282731,7.19363798,84.55,84.52,16.72]
[1771344283130,7.19363798,84.56,84.521,0.49535739]
[1771344283325,7.19363798,84.56,84.522,16.74]
[1771344283533,7.19363798,84.55,84.522,16.74]
[1771344283835,7.19363798,84.56,84.522,16.74]
[1771344284033,7.19363798,84.55,84.522,16.74]
[1771344284237,7.19363798,84.54,84.519,0.49535739]
[1771344284439,7.19363798,84.55,84.521,11.83137918]
[1771344284741,7.19363798,84.56,84.522,0.48049479]
[1771344284931,47.26688823,84.626,84.531,0.48049479]
[1771344284932,11.82331469,84.579,84.531,0.48049479]
[1771344285134,7.19363798,84.58,84.531,0.48049479]
[1771344285339,11.82326582,84.579,84.533,0.48049479]
[1771344285724,0.47393972,84.578,84.533,0.48049479]
[1771344286040,7.19363798,84.58,84.541,0.48049479]
[1771344286544,7.19363798,84.58,84.543,0.48049479]
[1771344287643,7.19363798,84.58,84.532,16.74]
[1771344287644,7.19363798,84.57,84.545,0.48049479]
[1771344287841,7.19363798,84.58,84.545,0.48049479]
[1771344288444,0.47393972,84.587,84.545,0.48049479]
[1771344288650,7.19363798,84.59,84.547,0.48049479]
[1771344288838,11.82186809,84.589,84.547,0.48049479]
[1771344289640,11.82186809,84.589,84.546,16.74]
[1771344289641,7.19363798,84.58,84.548,12.30809567]
[1771344289944,7.19363798,84.59,84.551,0.48049479]
[1771344290133,7.19363798,84.59,84.553,0.48049479]
[1771344290331,0.47393972,84.597,84.553,0.48049479]
[1771344290636,29.55378027,84.694,84.548,41.3966031]
[1771344290637,165.2,84.639,84.561,0.48049479]
[1771344290829,165.2,84.639,84.554,16.74]
[1771344290830,11.8140469,84.645,84.601,0.48049479]
[1771344291138,0.47393972,84.659,84.55,7.19363798]
[1771344291139,12.28616909,84.659,84.621,0.48049479]
[1771344291339,12.28616909,84.659,84.622,13.06]
[1771344291551,12.28616909,84.659,84.621,13.54049479]
[1771344291927,0.47393972,84.668,84.63,0.48049479]
[1771344292155,7.19363798,84.66,84.63,0.48049479]
[1771344292355,7.19363798,84.65,84.622,11.81725792]
[1771344292538,7.19363798,84.65,84.622,28.55725792]
[1771344292744,0.47273818,84.659,84.622,11.81725792]
[1771344292939,0.47273818,84.659,84.572,5.36086188]
[1771344292940,0.47273818,84.649,84.614,11.81836006]
[1771344293150,0.47273818,84.649,84.557,47.30491941]
[1771344293151,7.19363798,84.64,84.606,0.49037151]
[1771344293455,41.33744947,84.669,84.584,11.82256691]
[1771344293456,7.19363798,84.62,84.584,11.82256691]
[1771344293832,7.19363798,84.65,84.572,0.49037151]
[1771344293833,7.19363798,84.6,84.572,0.49037151]
[1771344294033,30.01708052,84.619,84.574,0.49037151]
[1771344294034,7.19363798,84.61,84.574,0.49037151]
[1771344294253,19.00977882,84.63,84.591,0.49037151]
[1771344294551,0.47273818,84.642,84.591,0.49037151]
[1771344294745,7.19363798,84.64,84.601,0.49037151]
[1771344294951,7.19363798,84.64,84.602,0.49037151]
[1771344295451,29.52984735,84.661,84.601,16.72]
[1771344295452,7.19363798,84.65,84.611,0.49037151]
[1771344295950,7.19363798,84.65,84.613,0.49037151]
[1771344296253,7.19363798,84.65,84.612,11.81865456]
[1771344296254,12.28405624,84.665,84.621,0.49037151]
[1771344296439,0.47273818,84.665,84.621,0.49037151]
[1771344296634,11.81070754,84.669,84.631,0.49037151]
[1771344297052,7.19363798,84.67,84.631,0.49037151]
[1771344297354,7.19363798,84.69,84.641,0.49037151]
[1771344297537,7.29363798,84.7,84.661,0.49037151]
[1771344297946,7.29363798,84.7,84.662,11.81167465]
[1771344298133,7.19363798,84.69,84.65,7.19363798]
[1771344298333,7.19363798,84.69,84.652,0.49037151]
[1771344298736,7.19363798,84.69,84.651,11.81320953]
[1771344298737,11.80651483,84.699,84.661,0.49037151]
[1771344298939,7.19363798,84.69,84.661,0.49037151]
[1771344299137,7.19363798,84.69,84.651,11.81320953]
[1771344299350,7.19363798,84.69,84.652,0.49037151]
[1771344299855,7.19363798,84.69,84.651,41.34623335]
[1771344299856,7.19363798,84.69,84.654,0.49037151]
[1771344300562,7.19363798,84.67,84.642,11.81446563]
[1771344300856,7.19363798,84.67,84.631,11.81594726]
[1771344300857,0.47273818,84.669,84.631,11.81594726]
[1771344301167,7.19363798,84.64,84.613,11.81850092]
[1771344301455,7.19363798,84.66,84.621,0.49037151]
[1771344301663,7.19363798,84.64,84.609,12.30941714]
[1771344301858,7.66637616,84.65,84.61,7.19363798]
[1771344302159,7.19363798,84.65,84.621,0.49037151]
[1771344302334,0.47273818,84.649,84.611,11.81879424]
[1771344302855,7.19363798,84.65,84.612,0.49037151]
[1771344303060,7.19363798,84.66,84.621,0.49037151]
[1771344303264,7.19363798,84.68,84.64,7.19363798]
[1771344303434,7.29363798,84.7,84.651,0.49037151]
[1771344303435,7.19363798,84.69,84.651,0.49037151]
[1771344303758,7.19363798,84.68,84.641,0.49037151]
[1771344303939,11.80930336,84.679,84.643,11.81432605]
[1771344304145,0.47273818,84.689,84.643,11.81432605]
[1771344304146,11.80799257,84.689,84.651,0.49037151]
[1771344304852,7.19363798,84.69,84.651,0.49037151]
[1771344305039,11.80651483,84.699,84.661,0.49037151]
[1771344305239,0.1,84.7,84.671,0.49037151]
[1771344305454,0.1,84.7,84.67,7.19363798]
[1771344305455,0.1,84.7,84.681,0.49037151]
[1771344306164,0.1,84.7,84.681,12.29935026]
[1771344306347,0.1,84.7,84.681,0.49037151]
[1771344306748,7.18237151,84.72,84.685,0.49037151]
[1771344307057,7.65510969,84.72,84.685,0.49037151]
[1771344307249,7.65510969,84.72,84.677,0.49037151]
[1771344307449,0.47273818,84.719,84.677,0.49037151]
[1771344307652,41.30817075,84.729,84.654,16.7]
[1771344307653,7.18237151,84.69,84.654,16.7]
[1771344307857,7.18237151,84.69,84.651,0.49037151]
[1771344308162,7.18237151,84.7,84.661,0.49037151]
[1771344308358,18.98735321,84.71,84.67,7.18237151]
[1771344308662,18.98735321,84.71,84.671,0.49037151]
[1771344308858,7.18237151,84.72,84.68,7.18237151]
[1771344309053,11.80317033,84.723,84.68,0.49037151]
[1771344309054,7.18237151,84.71,84.68,0.49037151]
[1771344309646,0.47273818,84.719,84.681,0.49037151]
[1771344309840,7.18237151,84.71,84.681,0.49037151]
[1771344310037,7.18237151,84.71,84.682,11.808885]
[1771344310754,7.18237151,84.71,84.676,28.48966403]
[1771344310944,11.80512106,84.709,84.676,28.48966403]
[1771344311258,7.18237151,84.7,84.667,11.8109411]
[1771344311563,7.18237151,84.68,84.651,12.30350777]
[1771344311859,0.47273818,84.688,84.641,0.49037151]
[1771344312038,7.18237151,84.69,84.651,0.49037151]
[1771344312239,7.18237151,84.68,84.643,11.8143025]
[1771344312558,7.18237151,84.68,84.641,16.68]
[1771344312559,0.47273818,84.688,84.642,0.49037151]
[1771344312859,7.18237151,84.68,84.642,0.49037151]
[1771344313065,7.18237151,84.67,84.63,7.18237151]
[1771344313359,7.18237151,84.64,84.604,0.49037151]
[1771344313860,7.18237151,84.63,84.604,0.49037151]
[1771344314055,18.99859005,84.63,84.6,11.82033096]
[1771344314259,18.99859005,84.63,84.601,0.49858294]
[1771344314461,11.81628047,84.629,84.601,0.49858294]
[1771344314649,7.18237151,84.64,84.602,0.49858294]
[1771344315151,13.04,84.653,84.602,0.49858294]
[1771344315152,7.18237151,84.63,84.602,0.49858294]
[1771344315462,11.81488439,84.639,84.568,0.49858294]
[1771344315463,13.51883538,84.629,84.568,0.49858294]
[1771344315670,13.51883538,84.629,84.571,0.49858294]
[1771344315671,0.47883538,84.629,84.571,0.49858294]
[1771344315847,41.35209536,84.639,84.569,41.38632358]
[1771344315848,7.18237151,84.61,84.581,0.49858294]
[1771344316046,7.18237151,84.64,84.601,0.49858294]
[1771344316263,11.81348864,84.649,84.611,0.49858294]
[1771344316560,11.81348864,84.649,84.598,16.7]
[1771344316561,13.04,84.664,84.621,0.49858294]
[1771344316775,7.18237151,84.65,84.621,0.49858294]
[1771344316949,7.18237151,84.64,84.621,0.49858294]
[1771344317148,13.04,84.67,84.621,0.49858294]
[1771344317467,7.18237151,84.65,84.621,0.49858294]
[1771344317761,7.18237151,84.66,84.621,0.49858294]
[1771344318263,13.04,84.67,84.631,0.49858294]
[1771344318264,32.03304775,84.67,84.631,0.49858294]
[1771344318561,18.99304775,84.67,84.641,0.49858294]
[1771344318966,7.18237151,84.66,84.629,0.49858294]
[1771344319264,7.18237151,84.66,84.592,47.28556178]
[1771344319265,13.04,84.664,84.615,0.49858294]
[1771344319570,13.04,84.664,84.601,0.49858294]
[1771344319571,7.18237151,84.63,84.601,0.49858294]
[1771344319786,7.18237151,84.63,84.598,16.68]
[1771344319787,7.18237151,84.62,84.59,0.49858294]
[1771344319948,7.18237151,84.6,84.578,0.49858294]
[1771344320153,7.18237151,84.63,84.591,0.49858294]
[1771344320454,7.18237151,84.64,84.601,0.49858294]
[1771344320864,54.40789019,84.7,84.621,0.49858294]
[1771344320865,7.18237151,84.66,84.621,0.49858294]
[1771344321646,47.22255212,84.706,84.6,23.86237151]
[1771344321647,7.18237151,84.68,84.641,0.49858294]
[1771344321849,7.18237151,84.69,84.658,0.49858294]
[1771344322078,13.04,84.718,84.661,0.49858294]
[1771344322247,7.18237151,84.71,84.671,0.49858294]
[1771344323567,13.04,84.731,84.681,0.49858294]
[1771344323766,7.18237151,84.72,84.681,0.49858294]
[1771344324158,13.04,84.744,84.681,0.49858294]
[1771344324159,7.18237151,84.71,84.682,11.808885]
[1771344324361,7.18237151,84.71,84.683,0.49858294]
[1771344324549,41.30378341,84.738,84.669,0.49858294]
[1771344324550,7.18237151,84.69,84.669,0.49858294]
[1771344324750,13.04,84.725,84.652,0.49858294]
[1771344324952,4.61729252,84.735,84.652,0.49858294]
[1771344325247,4.61729252,84.721,84.652,0.49858294]
[1771344325460,4.61729252,84.721,84.661,0.49858294]
[1771344325461,7.18237151,84.69,84.661,0.49858294]
[1771344325652,7.18237151,84.69,84.651,11.81320953]
[1771344325653,7.18237151,84.71,84.671,0.49858294]
[1771344326261,7.18237151,84.71,84.681,0.49858294]
[1771344327464,7.18237151,84.72,84.691,0.49858294]
[1771344327769,11.80372761,84.719,84.691,0.49858294]
[1771344328170,7.18237151,84.72,84.691,0.49858294]
[1771344328356,7.18237151,84.73,84.693,0.49858294]
[1771344328775,7.18237151,84.74,84.701,0.49858294]
[1771344328975,11.79843552,84.757,84.711,0.49858294]
[1771344329163,7.18237151,84.75,84.711,0.49858294]
[1771344329360,11.79690449,84.768,84.721,0.49858294]
[1771344329667,41.27407162,84.799,84.731,0.49858294]
[1771344329852,7.18237151,84.78,84.741,0.49858294]
[1771344330051,24.83259189,84.799,84.761,0.49858294]
[1771344330255,7.28237151,84.8,84.772,11.79634785]
[1771344330462,7.28237151,84.8,84.771,0.49858294]
[1771344330670,7.18237151,84.78,84.741,0.49858294]
[1771344330977,7.28237151,84.8,84.771,0.49858294]
[1771344331150,0.1,84.8,84.771,0.49858294]
[1771344331355,0.1,84.8,84.781,0.49858294]
[1771344331668,7.18237151,84.79,84.751,0.49858294]
[1771344331869,7.18237151,84.78,84.751,0.49858294]
[1771344332060,7.28237151,84.8,84.761,0.49858294]
[1771344332266,7.28237151,84.8,84.738,13.5]
[1771344332267,0.1,84.8,84.771,0.49858294]
[1771344332460,7.18237151,84.83,84.791,0.49858294]
[1771344332764,41.24974955,84.849,84.772,41.28721747]
[1771344332765,0.10393499,84.836,84.776,0.49858294]
[1771344332967,7.18237151,84.81,84.772,11.79634785]
[1771344333166,7.18237151,84.8,84.772,0.49858294]
[1771344333980,7.18237151,84.81,84.772,0.49858294]
[1771344334178,7.18237151,84.79,84.76,0.49858294]
[1771344334381,7.18237151,84.82,84.78,7.18237151]
[1771344334559,47.13253317,84.868,84.771,41.28770451]
[1771344334560,7.18237151,84.83,84.79,7.18237151]
[1771344334878,7.18237151,84.83,84.771,41.28770451]
[1771344334879,7.18237151,84.82,84.781,0.49858294]
[1771344335268,0.10393499,84.842,84.791,0.49858294]
[1771344335269,7.18237151,84.83,84.791,0.49858294]
[1771344335576,7.18237151,84.82,84.791,0.49858294]
[1771344335878,7.18237151,84.81,84.777,0.49858294]
[1771344336174,7.18237151,84.81,84.791,0.49858294]
[1771344336377,7.18237151,84.81,84.771,41.28770451]
[1771344336378,7.18237151,84.82,84.793,0.49858294]
[1771344336671,11.78689297,84.84,84.793,0.49858294]
[1771344336672,41.2541254,84.84,84.793,0.49858294]
[1771344336878,7.18237151,84.83,84.793,0.49858294]
[1771344337078,13.02,84.841,84.801,0.49858294]
[1771344337268,47.11610034,84.897,84.792,41.277479]
[1771344337269,7.18237151,84.85,84.811,0.49858294]
[1771344337659,29.45991661,84.862,84.811,0.49858294]
[1771344337864,7.18237151,84.86,84.83,7.68095445]
[1771344338064,11.78272652,84.87,84.831,0.49858294]
[1771344338280,7.18237151,84.87,84.831,0.49858294]
[1771344338483,0.1,84.9,84.851,0.49858294]
[1771344338676,0.1,84.9,84.84,0.49858294]
[1771344338977,11.77616987,84.918,84.881,0.49858294]
[1771344339157,13.02,84.95,84.881,0.49858294]
[1771344339361,47.06152649,84.996,84.878,16.58]
[1771344339362,0.20393499,84.974,84.921,0.49858294]
[1771344339574,13.02,84.991,84.941,0.49858294]
[1771344339575,0.20393499,84.991,84.941,0.49858294]
[1771344339760,7.18237151,84.98,84.951,0.49858294]
[1771344339963,7.18237151,84.97,84.951,0.49858294]